bitfinex/quotes_ETHUSD_20250623
["timestamp","ask_amount","ask_price","bid_price","bid_amount"]
[1750671389921,2.02,2254.2,2253.9,10.0]
[1750671390132,0.05545935,2254.1,2253.9,10.0]
[1750671390595,0.05545935,2254.1,2253.8,15.39964413]
[1750671391000,2.02,2254.2,2253.8,15.39964413]
[1750671391330,0.05545939,2254.1,2253.8,15.39964413]
[1750671391527,2.02,2254.2,2253.9,1.98366353]
[1750671391730,0.05545938,2254.1,2253.9,1.98366353]
[1750671393428,0.05545933,2254.1,2253.9,1.98366353]
[1750671397341,2.02,2254.2,2253.9,1.98366353]
[1750671397528,2.02,2254.2,2253.9,6.42041524]
[1750671397711,2.02,2254.2,2254.0,1.18200652]
[1750671399146,2.02,2254.2,2254.0,5.61854595]
[1750671399310,2.02,2254.2,2254.0,1.18200652]
[1750671400221,2.02,2254.2,2254.0,6.41267945]
[1750671402154,2.02,2254.2,2254.1,4.4363604]
[1750671402317,2.02,2254.2,2254.1,5.71962732]
[1750671402649,0.5658,2254.5,2254.2,4.43613026]
[1750671402946,2.01,2254.4,2254.3,4.43596681]
[1750671403114,2.01,2254.4,2254.2,4.43604225]
[1750671403443,0.5658,2254.7,2254.3,4.43596681]
[1750671403649,2.01,2254.6,2254.4,5.32296284]
[1750671404049,2.01,2254.6,2254.4,0.88720091]
[1750671404237,2.01,2254.6,2254.4,5.32283543]
[1750671404945,2.01,2254.6,2254.4,5.32292693]
[1750671405252,2.01,2254.8,2254.5,0.97588099]
[1750671405432,2.01,2254.8,2254.4,6.0827679]
[1750671405957,2.01,2254.8,2254.5,4.43557169]
[1750671406262,2.01,2254.8,2254.6,11.45297431]
[1750671406429,2.01,2254.8,2254.6,11.45301573]
[1750671406617,2.01,2254.8,2254.6,7.01768259]
[1750671406817,2.01,2254.8,2254.6,11.4530204]
[1750671407029,2.01,2254.8,2254.6,7.01768259]
[1750671407543,2.01,2254.8,2254.4,13.10043488]
[1750671407742,2.01,2254.8,2254.5,1.75363263]
[1750671408254,2.01,2254.8,2254.5,6.18919448]
[1750671408480,0.0554417,2254.7,2254.5,1.75363263]
[1750671408634,0.6212417,2254.7,2254.2,10.7528]
[1750671408820,0.6212417,2254.7,2254.1,1.72801731]
[1750671409033,0.5658,2254.5,2253.7,4.4371162]
[1750671409358,7.52346041,2254.4,2253.9,14.43664448]
[1750671409562,2.01,2254.3,2253.9,14.87467102]
[1750671409764,0.05545843,2254.2,2253.9,17.50760593]
[1750671410221,0.05545843,2254.2,2253.9,13.07096145]
[1750671411033,0.05545843,2254.2,2253.9,17.50771117]
[1750671411557,0.05545843,2254.2,2253.9,13.07096145]
[1750671411951,0.05545843,2254.2,2253.9,12.63293491]
[1750671412684,0.05545843,2254.2,2253.9,10.0]
[1750671413335,0.05545843,2254.2,2253.9,14.43673922]
[1750671413542,2.01,2254.3,2253.9,14.43673922]
[1750671413862,2.01,2254.3,2253.9,14.88459388]
[1750671414666,2.01,2254.3,2253.9,10.44785466]
[1750671415227,2.01,2254.3,2253.9,10.0]
[1750671416047,2.01,2254.3,2253.9,14.43672361]
[1750671417698,0.05545839,2254.2,2253.9,10.0]
[1750671418389,0.05545839,2254.2,2253.8,0.45065492]
[1750671418574,1.57460423,2254.2,2253.6,10.0]
[1750671418893,0.5658,2253.9,2253.2,1.33374]
[1750671419047,0.5658,2253.7,2253.0,4.43847512]
[1750671419364,0.0554766,2253.6,2253.1,10.0]
[1750671419568,0.5658,2253.5,2253.0,1.6678566]
[1750671419780,0.05547912,2253.4,2253.0,11.6678566]
[1750671419988,0.05547912,2253.4,2253.0,16.10638009]
[1750671420235,0.05547912,2253.4,2253.0,11.6678566]
[1750671420481,0.05547912,2253.4,2253.0,16.10636576]
[1750671420854,0.05547912,2253.4,2253.0,11.6678566]
[1750671421355,0.05547912,2253.4,2253.0,16.10637357]
[1750671421877,0.05547912,2253.4,2253.1,1.33403998]
[1750671422083,0.05547912,2253.4,2253.0,12.11024995]
[1750671422667,0.5658,2253.2,2252.9,10.0]
[1750671422868,0.05548433,2253.1,2252.9,10.0]
[1750671423066,0.5658,2253.2,2252.9,10.0]
[1750671423469,0.5658,2253.2,2252.9,14.43872098]
[1750671423670,0.5658,2253.2,2252.9,17.10866603]
[1750671423856,0.05548432,2253.1,2252.6,0.44652414]
[1750671424193,0.05548432,2253.1,2252.6,10.0]
[1750671424483,0.05548432,2253.1,2252.5,11.45711063]
[1750671424984,0.05548432,2253.1,2252.6,14.43928611]
[1750671425379,0.5658,2253.2,2252.6,14.43928611]
[1750671425589,0.5658,2253.2,2252.8,4.43888929]
[1750671425901,0.5658,2253.2,2252.7,11.45664879]
[1750671426067,0.5658,2253.2,2252.7,11.45669182]
[1750671427291,2.01,2253.1,2252.7,11.45669182]
[1750671427586,2.01,2253.1,2252.8,4.43885809]
[1750671427801,2.01,2253.1,2252.9,11.45639148]
[1750671427982,2.01,2253.1,2252.9,7.01768259]
[1750671429097,0.62128806,2253.2,2252.9,7.01768259]
[1750671429300,2.011,2253.1,2252.9,11.45640502]
[1750671429467,0.62128159,2253.2,2252.9,11.45640502]
[1750671429673,2.011,2253.3,2253.0,1.87883846]
[1750671429871,0.05548155,2253.2,2252.9,11.45640502]
[1750671430183,0.05548155,2253.2,2252.9,11.45629256]
[1750671431310,0.05548155,2253.2,2253.0,4.43850885]
[1750671432003,0.05548155,2253.2,2253.1,7.01768259]
[1750671432522,2.0,2253.6,2253.2,4.43797395]
[1750671432679,2.0,2253.6,2253.3,7.01768259]
[1750671433309,0.05547421,2253.5,2253.3,7.01768259]
[1750671433502,0.5658,2253.5,2253.1,12.28278893]
[1750671434587,0.5658,2253.5,2253.2,4.43813108]
[1750671434782,2.0,2253.6,2253.3,4.43792089]
[1750671435297,2.0,2253.6,2253.3,11.45560348]
[1750671435692,2.0,2253.6,2253.3,7.01768259]
[1750671435894,2.0,2253.6,2253.3,11.45559658]
[1750671436612,2.0,2253.6,2253.3,7.01768259]
[1750671439182,2.0,2253.6,2253.3,12.85106268]
[1750671440884,2.0,2253.6,2253.3,1.39545916]
[1750671441084,2.0,2253.6,2253.2,8.68977459]
[1750671441332,2.0,2253.6,2253.2,13.12781475]
[1750671441683,2.0,2253.6,2253.2,13.94881475]
[1750671442785,2.0,2253.6,2253.3,4.43790287]
[1750671442980,10.55,2254.2,2253.4,11.45532887]
[1750671442981,0.5658,2253.9,2253.4,11.45532887]
[1750671443185,2.0,2253.6,2253.5,4.43751391]
[1750671444704,2.0,2253.8,2253.5,5.25312282]
[1750671444890,2.0,2253.8,2253.6,11.45501494]
[1750671445086,2.0,2253.8,2253.6,13.30971519]
[1750671445629,2.05546188,2253.8,2253.4,13.29387953]
[1750671445836,2.05546188,2253.8,2253.4,13.2939356]
[1750671446219,2.0,2253.8,2253.4,13.2939356]
[1750671446431,2.0,2253.8,2253.6,7.01768259]
[1750671448005,2.0,2253.8,2253.6,11.45500896]
[1750671448205,2.0,2253.8,2253.7,4.4371478]
[1750671448617,2.0,2253.8,2253.6,13.22801238]
[1750671449028,9.447,2253.9,2253.6,8.79078618]
[1750671449234,9.447,2253.9,2253.6,13.22812361]
[1750671450042,2.0,2253.9,2253.7,5.20503721]
[1750671450207,0.5658,2254.3,2253.8,11.45463351]
[1750671450409,18.108,2254.0,2253.8,11.45463351]
[1750671450737,18.108,2254.0,2253.7,8.86099867]
[1750671450924,18.108,2254.0,2253.7,7.01768259]
[1750671451126,0.5658,2253.9,2253.5,22.2061931]
[1750671451303,0.05546081,2253.8,2253.5,10.0]
[1750671451702,18.108,2254.0,2253.6,11.4548586]
[1750671452711,7.445,2253.9,2253.6,11.4548586]
[1750671453030,7.445,2253.9,2253.6,14.22797243]
[1750671453405,7.445,2253.9,2253.6,9.79079642]
[1750671454949,7.445,2253.9,2253.6,11.12463042]
[1750671455245,7.445,2253.9,2253.5,14.43753563]
[1750671455442,7.445,2253.9,2253.6,7.01768259]
[1750671455612,12.662,2254.0,2253.6,11.45499677]
[1750671455811,7.442,2253.9,2253.6,7.01768259]
[1750671456442,7.442,2253.9,2253.6,11.45500444]
[1750671456624,7.442,2253.9,2253.8,7.01768259]
[1750671459549,7.442,2253.9,2253.8,7.45475949]
[1750671459934,7.442,2253.9,2253.8,0.4370769]
[1750671460135,7.442,2253.9,2253.7,4.86514648]
[1750671461636,20.102,2254.0,2253.8,10.0]
[1750671461826,20.102,2254.0,2253.9,1.48651465]
[1750671462026,20.102,2254.0,2253.8,10.0]
[1750671463164,20.102,2254.0,2253.8,14.43694766]
[1750671463457,0.5658,2254.5,2253.9,4.43675407]
[1750671463761,9.426,2254.4,2254.0,11.45423741]
[1750671464177,9.426,2254.4,2254.0,7.01768259]
[1750671464468,9.426,2254.3,2254.0,7.01768259]
[1750671464633,9.426,2254.3,2254.0,14.22147484]
[1750671464966,0.5658,2254.5,2254.2,11.45384619]
[1750671465275,7.49144763,2254.4,2254.1,10.0]
[1750671465431,7.49144763,2254.4,2253.9,11.333698]
[1750671465778,7.49144763,2254.4,2253.8,10.4476929]
[1750671465957,7.49144763,2254.4,2253.8,11.7814209]
[1750671466548,0.5658,2254.3,2253.8,10.4476929]
[1750671466764,0.05546078,2254.2,2253.8,0.4476929]
[1750671466944,9.9898,2254.1,2253.6,1.333864]
[1750671467146,0.05546343,2254.0,2253.7,10.0]
[1750671467430,9.9898,2254.1,2253.7,10.0]
[1750671468072,9.9898,2254.1,2253.7,14.43706928]
[1750671468438,9.424,2254.1,2253.8,12.28333237]
[1750671469230,9.424,2254.1,2253.8,12.28322327]
[1750671469428,9.424,2254.1,2253.9,7.10877962]
[1750671470069,9.424,2254.1,2253.9,2.67202863]
[1750671470665,9.424,2254.1,2253.9,7.10877648]
[1750671471271,0.5658,2254.3,2253.9,7.10877648]
[1750671471469,9.422,2254.2,2253.9,2.67202863]
[1750671472571,0.5658,2254.3,2253.9,2.67202863]
[1750671472872,1.989,2254.1,2253.9,2.67202863]
[1750671473237,0.5658,2254.3,2253.9,2.67202863]
[1750671473437,9.47545608,2254.2,2253.8,0.43730093]
[1750671473663,9.42,2254.2,2253.7,10.0]
[1750671473863,0.05546267,2254.1,2253.7,10.0]
[1750671474654,0.5658,2254.0,2253.7,10.0]
[1750671475171,0.05546265,2253.9,2253.7,10.0]
[1750671475344,0.5658,2254.0,2253.7,10.0]
[1750671475673,0.05546515,2253.9,2253.7,10.0]
[1750671476052,0.05546515,2253.9,2253.5,1.333935]
[1750671476257,0.05546515,2253.9,2253.5,10.0]
[1750671476605,0.5658,2253.8,2253.4,1.333964]
[1750671476747,0.5658,2253.6,2253.0,11.45620673]
[1750671476946,9.47347839,2253.5,2253.0,9.57823526]
[1750671477146,9.418,2253.5,2253.0,9.57823526]
[1750671477750,9.418,2253.5,2253.2,7.01768259]
[1750671478383,9.418,2253.5,2253.1,7.01768259]
[1750671479151,9.418,2253.5,2253.3,7.01768259]
[1750671479880,9.418,2253.5,2253.3,11.4554754]
[1750671480257,9.418,2253.5,2253.4,4.43773852]
[1750671480700,9.418,2253.5,2253.3,11.45551593]
[1750671480920,9.418,2253.5,2253.4,1.93961928]
[1750671481415,1.989,2253.5,2253.4,1.93961928]
[1750671481617,1.989,2253.5,2253.4,6.3773578]
[1750671482379,1.989,2253.8,2253.5,4.43734671]
[1750671482585,1.989,2253.8,2253.6,7.01768259]
[1750671483087,1.989,2253.8,2253.6,11.45499736]
[1750671483326,1.989,2253.8,2253.6,7.01768259]
[1750671483908,1.989,2253.8,2253.6,11.45500182]
[1750671484245,1.989,2253.8,2253.6,11.4550221]
[1750671484391,1.989,2253.8,2253.7,1.8464728]
[1750671485331,2.5548,2253.8,2253.2,2.71206901]
[1750671485491,0.62127654,2253.7,2253.1,10.0]
[1750671486003,0.62127654,2253.7,2253.0,8.24400326]
[1750671486202,0.62127654,2253.7,2253.0,7.01768259]
[1750671486584,0.5658,2253.7,2253.0,7.01768259]
[1750671487017,0.5658,2253.7,2253.0,11.45608922]
[1750671487214,0.5658,2253.7,2253.2,7.01768259]
[1750671487590,0.5658,2253.7,2253.0,4.43840663]
[1750671487591,0.5658,2253.7,2253.0,7.01768259]
[1750671487796,0.82128,2253.7,2253.0,7.01768259]
[1750671488513,0.82128,2253.7,2253.2,7.01768259]
[1750671488713,0.0554788,2253.6,2253.4,7.01768259]
[1750671490208,0.5658,2253.5,2253.0,7.01768259]
[1750671490411,0.05547831,2253.4,2253.0,7.01768259]
[1750671490618,1.989,2253.3,2253.0,7.01768259]
[1750671491824,1.989,2253.3,2253.0,11.45619877]
[1750671492130,1.989,2253.3,2253.2,7.01768259]
[1750671493408,2.5548,2253.3,2253.2,7.01768259]
[1750671494096,2.5548,2253.3,2253.0,7.01768259]
[1750671495128,0.05548168,2253.2,2253.0,7.01768259]
[1750671495331,2.5548,2253.3,2253.0,7.01768259]
[1750671495536,2.5548,2253.3,2253.0,9.29676532]
[1750671496039,1.989,2253.3,2253.0,13.73517288]
[1750671496726,1.989,2253.3,2253.0,9.29676532]
[1750671499210,0.5658,2253.5,2253.0,9.29676532]
[1750671499419,0.05548162,2253.4,2253.0,9.29676532]
[1750671499834,0.05548162,2253.4,2253.0,10.63109232]
[1750671500129,1.5,2253.2,2253.0,10.63109232]
[1750671501233,1.5,2253.2,2253.0,15.06961707]
[1750671501747,1.5,2253.2,2253.1,4.43832941]
[1750671502040,1.5,2253.2,2253.1,5.94529112]
[1750671502227,1.5,2253.2,2253.1,1.50696171]
[1750671505759,1.5,2253.2,2253.1,5.94529112]
[1750671506534,1.5,2253.2,2253.1,6.70349112]
[1750671507027,1.5,2253.2,2253.1,16.70349112]
[1750671508218,1.979,2253.9,2253.7,4.43712965]
[1750671508437,1.979,2253.9,2253.8,7.01768259]
[1750671511727,1.979,2253.9,2253.6,7.78898259]
[1750671512659,1.979,2253.9,2253.4,0.811]
[1750671512833,0.62126502,2253.8,2253.3,21.45552674]
[1750671513217,0.62126502,2253.8,2253.3,17.01768259]
[1750671513421,0.62126502,2253.8,2253.3,10.0]
[1750671514628,0.62126502,2253.8,2253.2,7.01768259]
[1750671519250,1.05403611,2254.3,2253.6,7.01768259]
[1750671519455,2.5448,2254.6,2254.1,4.43633465]
[1750671519655,1.979,2254.6,2254.2,7.01768259]
[1750671519960,1.979,2254.6,2254.3,4.43595211]
[1750671520125,1.979,2254.6,2254.2,7.01768259]
[1750671520330,1.979,2254.6,2254.0,21.45409684]
[1750671520331,3.29978,2254.6,2254.0,21.45409684]
[1750671520563,3.29978,2254.6,2254.0,22.78755084]
[1750671520739,3.29978,2254.6,2254.2,7.01768259]
[1750671521135,3.29978,2254.6,2254.2,11.45375082]
[1750671521345,1.979,2254.5,2254.2,7.01768259]
[1750671521559,1.979,2254.4,2254.2,7.01768259]
[1750671521929,1.979,2254.4,2254.3,10.0]
[1750671522133,1.979,2254.4,2254.3,14.43596681]
[1750671523267,18.069,2254.7,2254.2,14.43605763]
[1750671523268,10.663,2254.7,2254.2,14.43605763]
[1750671523430,2.02544557,2254.6,2254.2,14.43605763]
[1750671523629,1.97,2254.5,2254.2,14.43605763]
[1750671524570,1.97,2254.4,2254.2,14.43605763]
[1750671525068,10.663,2254.7,2254.2,14.43605763]
[1750671525263,9.373,2254.6,2254.2,14.43605763]
[1750671525486,9.373,2254.6,2254.2,17.35286391]
[1750671526571,10.663,2254.7,2254.2,17.35286391]
[1750671526572,10.663,2254.7,2254.2,12.91680628]
[1750671526769,9.373,2254.5,2254.4,4.43569887]
[1750671527078,1.969,2254.5,2254.4,4.43569887]
[1750671528770,1.969,2254.5,2254.3,5.25854732]
[1750671528972,1.969,2254.5,2254.3,7.65303677]
[1750671529171,10.663,2254.7,2254.4,4.43576898]
[1750671529373,1.969,2254.5,2254.4,4.43576898]
[1750671529580,1.969,2254.5,2254.3,7.65303498]
[1750671530071,1.969,2254.5,2254.3,3.21718945]
[1750671530644,1.969,2254.5,2254.3,7.65314491]
[1750671533176,10.663,2254.7,2254.4,4.43577004]
[1750671533349,9.37,2254.6,2254.5,4.43546894]
[1750671533547,1.969,2254.6,2254.5,4.43546894]
[1750671534479,10.663,2254.7,2254.6,15.22997656]
[1750671534682,10.663,2254.7,2254.6,25.52564495]
[1750671534865,1.969,2254.8,2254.7,14.43517984]
[1750671535267,11.2268,2255.6,2254.9,4.43477321]
[1750671535584,0.5658,2255.4,2254.8,5.19580594]
[1750671535758,0.05543009,2255.3,2254.8,5.19580594]
[1750671535963,0.05543009,2255.3,2254.9,10.0]
[1750671537993,7.398,2255.2,2254.9,10.0]
[1750671538810,0.62123005,2255.1,2254.9,10.0]
[1750671538969,1.969,2255.0,2254.9,10.0]
[1750671539405,0.5658,2255.5,2254.9,1.8870061]
[1750671539603,9.42142707,2255.4,2255.0,0.7901]
[1750671539801,9.366,2255.4,2254.9,11.8870061]
[1750671540011,0.0554291,2255.3,2254.9,10.0]
[1750671540442,0.0554291,2255.3,2254.6,3.68974842]
[1750671540443,0.5658,2255.2,2254.6,3.68974842]
[1750671540711,0.05543752,2255.1,2254.5,4.43546544]
[1750671540881,7.396,2255.0,2254.7,4.43517724]
[1750671541085,1.969,2254.9,2254.6,5.23767538]
[1750671541675,0.62123715,2254.8,2254.3,10.0]
[1750671541886,0.62123715,2254.8,2254.1,4.43628122]
[1750671542105,0.62123715,2254.8,2254.0,5.23880119]
[1750671542412,0.62123715,2254.8,2254.1,10.0]
[1750671542976,0.62123715,2254.8,2254.1,14.43633996]
[1750671543175,1.71351086,2254.8,2254.1,14.43633996]
[1750671543376,1.71351086,2254.8,2254.2,4.43598047]
[1750671543578,9.364,2254.7,2254.2,4.43598047]
[1750671543815,0.05544601,2254.6,2254.1,14.43624166]
[1750671545591,0.05544601,2254.6,2254.2,4.4361597]
[1750671545786,9.364,2254.7,2254.1,14.43627641]
[1750671545991,9.364,2254.7,2254.2,4.43614994]
[1750671546880,9.364,2254.6,2254.4,4.43569268]
[1750671547080,9.364,2254.6,2254.2,2.99706498]
[1750671547275,9.364,2254.6,2254.2,7.43314461]
[1750671548118,9.364,2254.6,2254.3,4.43596473]
[1750671548611,9.364,2254.6,2254.2,7.43311513]
[1750671550320,9.364,2254.6,2254.2,11.45641168]
[1750671550817,1.969,2254.5,2254.4,7.02036153]
[1750671552182,1.969,2254.5,2254.2,7.02036153]
[1750671552386,1.969,2254.5,2254.2,11.45640104]
[1750671552628,1.969,2254.5,2254.3,4.43596571]
[1750671552828,1.969,2254.5,2254.4,11.45613157]
[1750671553288,1.969,2254.5,2254.4,7.02036153]
[1750671553622,0.5658,2254.8,2254.4,7.02036153]
[1750671553793,1.963,2254.5,2254.3,4.43585968]
[1750671554002,1.963,2254.5,2254.3,7.02036153]
[1750671555819,1.963,2254.5,2254.3,11.45625591]
[1750671556023,1.963,2254.5,2254.3,7.02036153]
[1750671556786,1.963,2254.5,2254.3,11.45631343]
[1750671556990,1.963,2254.5,2254.3,13.23489322]
[1750671558122,1.963,2254.5,2254.4,4.43577004]
[1750671558426,1.963,2254.5,2254.3,13.23478484]
[1750671559028,1.963,2254.5,2254.3,8.79894132]
[1750671559398,1.963,2254.5,2254.3,7.02036153]
[1750671562839,1.963,2254.5,2254.2,1.89327123]
[1750671563415,0.05544788,2254.4,2253.9,11.333526]
[1750671563608,0.05544788,2254.4,2253.9,10.0]
[1750671563938,2.5288,2254.5,2254.0,21.45681816]
[1750671564139,2.5288,2254.5,2254.1,14.43629144]
[1750671564611,2.5288,2254.5,2254.1,10.0]
[1750671564799,2.5288,2254.5,2254.1,17.02036153]
[1750671565005,2.5288,2254.5,2254.1,21.45670386]
[1750671565235,0.5658,2255.1,2254.3,7.02036153]
[1750671565420,1.963,2255.0,2254.5,7.02036153]
[1750671565635,0.62124038,2254.9,2254.3,7.02036153]
[1750671566254,0.62124038,2254.9,2254.2,5.23408185]
[1750671566549,0.62124038,2254.9,2254.1,18.3590437]
[1750671566550,0.62124038,2254.9,2254.1,27.32084427]
[1750671566705,0.5658,2254.7,2254.1,27.32084427]
[1750671566922,0.0554463,2254.6,2254.1,27.32084427]
[1750671567121,0.5658,2254.4,2253.9,4.43673223]
[1750671567717,0.5658,2254.4,2253.9,10.0]
[1750671567922,0.5658,2254.4,2253.9,14.43675141]
[1750671568360,0.5658,2254.4,2253.9,10.0]
[1750671569563,0.5658,2254.4,2253.9,14.4366553]
[1750671569734,0.05545529,2254.3,2254.0,1.56166695]
[1750671569939,0.05545529,2254.3,2253.9,10.0]
[1750671570659,0.05545529,2254.3,2253.9,14.436749]
[1750671571258,0.05545529,2254.3,2253.9,10.0]
[1750671571420,0.05545529,2254.3,2253.9,14.43675106]
[1750671571624,0.05545529,2254.3,2253.9,16.42411701]
[1750671572066,0.05545529,2254.3,2253.9,11.98736595]
[1750671572839,0.05545529,2254.3,2253.9,16.42411429]
[1750671573039,0.05545529,2254.3,2253.9,11.98736595]
[1750671573454,1.963,2254.2,2254.0,4.43653825]
[1750671573639,1.963,2254.2,2254.0,6.12238509]
[1750671574051,1.963,2254.2,2254.0,1.68584684]
[1750671577361,1.963,2254.2,2254.0,6.12239708]
[1750671577558,1.963,2254.1,2254.0,6.12239708]
[1750671577768,1.963,2254.1,2254.0,16.12239708]
[1750671580277,1.963,2254.1,2254.0,11.68584684]
[1750671581781,1.963,2254.1,2254.0,16.12240407]
[1750671585611,1.963,2254.1,2254.0,11.68584684]
[1750671587321,1.963,2254.1,2254.0,16.12240407]
[1750671588502,1.963,2254.1,2254.0,23.14361319]
[1750671588668,1.963,2254.1,2254.0,18.70705596]
[1750671588869,1.963,2254.1,2254.0,10.0]
[1750671590078,1.963,2254.1,2254.0,21.45776635]
[1750671590774,1.963,2254.1,2254.0,17.02120912]
[1750671591566,1.963,2254.1,2254.0,10.0]
[1750671591810,1.963,2254.1,2253.9,10.0]
[1750671593405,1.957,2254.1,2254.0,7.02120912]
[1750671593701,1.957,2254.1,2253.9,12.4051629]
[1750671593907,1.957,2254.1,2254.0,7.02120912]
[1750671595807,1.957,2254.1,2253.9,7.02120912]
[1750671599213,0.5658,2254.0,2253.7,1.333786]
[1750671599513,0.25228,2253.9,2253.4,10.0]
[1750671599700,7.99926711,2253.8,2253.4,10.0]
[1750671600377,0.05546711,2253.8,2253.5,7.02120912]
[1750671600578,1.957,2253.7,2253.5,7.02120912]
[1750671602417,2.01246699,2253.7,2253.5,7.02120912]
[1750671602581,0.5658,2253.6,2253.5,7.02120912]
[1750671603132,0.5658,2253.6,2253.3,1.334012]
[1750671603277,0.05547481,2253.5,2253.1,7.02120912]
[1750671604222,0.5658,2253.6,2253.1,7.02120912]
[1750671604431,0.0554761,2253.5,2253.1,7.02120912]
[1750671605202,0.5658,2253.6,2253.2,10.0]
[1750671605403,1.55588,2253.6,2253.2,10.0]
[1750671608311,0.62127767,2253.5,2253.2,10.0]
[1750671608640,0.62127767,2253.5,2252.6,11.24624236]
[1750671608931,0.62127767,2253.5,2252.7,11.334428]
[1750671609131,0.62127767,2253.5,2252.7,11.77642307]
[1750671609339,0.62127767,2253.5,2252.7,1.77642307]
[1750671610206,0.62127767,2253.5,2252.7,4.18003596]
[1750671611132,0.62127767,2253.5,2252.7,9.86681708]
[1750671611338,0.62127767,2253.5,2252.7,7.46320419]
[1750671611540,0.62127767,2253.5,2252.8,10.0]
[1750671611837,0.55,2253.4,2252.8,10.0]
[1750671612042,0.62128694,2253.3,2252.8,10.0]
[1750671612236,2.5238,2253.2,2252.8,10.0]
[1750671612440,2.5238,2253.2,2252.5,8.35572612]
[1750671612441,0.5658,2253.0,2252.5,8.35572612]
[1750671612751,0.5658,2253.0,2252.6,10.0]
[1750671612907,0.5658,2253.0,2252.7,7.02120912]
[1750671613109,9.333,2252.9,2252.7,7.02120912]
[1750671613310,1.958,2252.8,2252.6,7.02120912]
[1750671613657,1.958,2252.7,2252.6,7.02120912]
[1750671614211,1.958,2252.7,2252.6,7.84387332]
[1750671615553,1.958,2252.7,2252.5,0.44503291]
[1750671615711,1.958,2252.7,2252.5,7.02120912]
[1750671616549,0.5658,2253.0,2252.5,11.46064549]
[1750671616550,1.951,2252.6,2252.5,11.46064549]
[1750671616751,1.951,2252.6,2252.5,12.26244549]
[1750671618860,1.951,2252.6,2252.5,7.82300912]
[1750671619561,1.951,2252.6,2252.5,8.26694099]
[1750671619764,1.951,2252.6,2252.5,10.07064568]
[1750671620524,1.951,2252.6,2252.5,7.46514099]
[1750671622242,1.951,2252.6,2252.5,0.44393187]
[1750671622530,2.5168,2252.6,2252.2,10.0]
[1750671622746,2.5168,2252.6,2252.2,11.334701]
[1750671623180,2.5168,2252.6,2252.2,10.0]
[1750671624475,0.5658,2252.4,2252.0,0.43867601]
[1750671624659,0.5658,2252.2,2251.7,7.02120912]
[1750671624859,2.00650705,2252.1,2251.7,11.46228531]
[1750671625059,0.25168,2252.6,2251.9,7.79550912]
[1750671625060,1.1158,2252.5,2251.9,7.79550912]
[1750671625287,1.951,2252.4,2252.1,7.02120912]
[1750671625577,2.0065037,2252.4,2251.9,7.79550912]
[1750671626745,2.0065037,2252.4,2251.9,12.23618969]
[1750671626746,0.0555037,2252.4,2251.9,12.23618969]
[1750671626939,1.951,2252.3,2252.1,7.02120912]
[1750671627544,0.5658,2252.5,2252.1,7.02120912]
[1750671627876,9.323,2252.4,2252.1,7.02120912]
[1750671628249,1.951,2252.3,2252.1,7.02120912]
[1750671629176,1.952,2252.2,2252.1,7.02120912]
[1750671629978,0.5658,2252.5,2252.1,7.02120912]
[1750671630166,1.952,2252.4,2252.1,7.02120912]
[1750671630886,1.952,2252.4,2252.3,7.02120912]
[1750671632070,1.952,2252.4,2252.3,7.80800912]
[1750671632588,11.2338,2252.7,2252.3,7.80800912]
[1750671633669,0.05549691,2252.5,2251.9,10.0]
[1750671633880,0.05549691,2252.5,2251.7,10.0]
[1750671633881,0.5658,2252.4,2251.7,10.0]
[1750671634084,0.05550361,2252.3,2251.7,10.0]
[1750671634391,0.05550361,2252.3,2251.9,10.0]
[1750671634595,9.323,2252.2,2252.0,7.02120912]
[1750671634891,9.323,2252.2,2252.0,7.46946198]
[1750671635311,9.323,2252.2,2252.0,0.44825286]
[1750671635665,0.05550358,2252.1,2251.6,17.02120912]
[1750671635899,0.05550358,2252.1,2251.6,18.80310003]
[1750671636479,0.05550358,2252.1,2251.8,7.02120912]
[1750671636771,9.322,2252.0,2251.8,7.45750518]
[1750671637270,9.322,2252.0,2251.8,0.43629606]
[1750671637575,9.322,2252.0,2251.7,7.02120912]
[1750671638971,9.8878,2252.0,2251.7,7.02120912]
[1750671640403,9.8878,2252.0,2251.7,7.46618605]
[1750671640574,0.5658,2252.4,2251.7,9.18084635]
[1750671640777,9.321,2252.3,2251.9,7.02120912]
[1750671641096,0.5658,2252.4,2252.1,7.02120912]
[1750671641299,1.952,2252.2,2252.1,7.02120912]
[1750671642572,1.952,2252.2,2251.9,7.02120912]
[1750671643506,0.5658,2252.1,2251.7,0.44497693]
[1750671643811,0.5658,2252.1,2251.6,10.0]
[1750671644105,0.05550925,2252.0,2251.6,17.4554273]
[1750671644814,9.32,2251.9,2251.8,7.02120912]
[1750671644967,9.32,2251.9,2251.6,17.4554273]
[1750671645288,9.32,2251.9,2251.6,10.43421818]
[1750671646112,0.5658,2252.1,2251.6,10.43421818]
[1750671646113,0.5658,2252.1,2251.7,7.02120912]
[1750671646407,9.314,2252.0,2251.9,17.02120912]
[1750671646908,0.5658,2252.1,2251.9,7.02120912]
[1750671647093,1.946,2252.0,2251.9,7.02120912]
[1750671647489,0.5658,2252.3,2251.9,7.02120912]
[1750671647802,1.946,2252.1,2251.9,7.02120912]
[1750671648113,1.946,2252.1,2251.9,9.24793458]
[1750671648919,0.5658,2252.3,2251.8,7.02120912]
[1750671649098,9.313,2252.2,2252.0,7.02120912]
[1750671653221,9.313,2252.2,2251.7,5.20166743]
[1750671653406,9.8788,2252.2,2251.8,10.0]
[1750671653605,2.0658,2252.5,2252.1,7.02120912]
[1750671653808,1.946,2252.4,2252.3,7.02120912]
[1750671654015,1.5,2252.5,2252.3,12.23401499]
[1750671654211,1.5,2252.5,2252.4,14.48410104]
[1750671654397,1.5,2252.5,2252.4,17.11152035]
[1750671655478,1.5,2252.5,2252.4,12.6718116]
[1750671655678,1.5,2252.5,2252.4,10.0]
[1750671660622,1.5,2252.5,2252.4,14.43970875]